bitfinex/quotes_ETHUSD_20250428
["timestamp","ask_amount","ask_price","bid_price","bid_amount"]
[1745834153309,3.65877341,1810.4,1810.3,0.4150667]
[1745834160186,4.48067341,1810.4,1810.3,0.4150667]
[1745834163946,10.54067341,1810.4,1810.3,0.4150667]
[1745834164361,16.06431459,1810.4,1810.3,0.4150667]
[1745834164735,16.61431459,1810.4,1810.3,0.4150667]
[1745834166458,0.7934,1810.0,1809.4,0.785]
[1745834166750,2.35024394,1809.5,1809.4,0.785]
[1745834167066,5.35024394,1809.5,1809.0,0.7776]
[1745834167219,0.53502439,1809.4,1809.0,0.7776]
[1745834167550,8.41024394,1809.7,1809.0,0.7776]
[1745834167750,0.30963547,1809.4,1809.0,0.7776]
[1745834168849,0.30963547,1809.6,1809.0,0.7776]
[1745834170065,0.30963547,1809.5,1809.0,0.7776]
[1745834171370,0.30963547,1809.6,1809.0,0.7776]
[1745834171551,1.18162341,1809.6,1809.0,0.7776]
[1745834172423,0.30963547,1809.5,1809.0,0.7776]
[1745834176151,0.7664,1809.4,1808.8,0.8301]
[1745834176639,2.65987941,1809.5,1808.8,0.8301]
[1745834176840,2.65987941,1809.5,1808.9,0.8301]
[1745834176841,0.30963547,1809.5,1808.9,0.8301]
[1745834177964,0.30963547,1809.5,1809.0,0.7924]
[1745834178476,0.30963547,1809.6,1809.0,0.7924]
[1745834179781,3.14554394,1809.5,1808.8,0.8277]
[1745834180882,0.30963547,1809.6,1808.9,0.8108]
[1745834181043,0.41383943,1809.9,1809.1,0.8108]
[1745834181044,3.8316,1809.8,1809.1,0.8108]
[1745834181370,0.38316,1809.7,1809.1,1.12690439]
[1745834182100,0.69204309,1809.7,1809.2,0.7774]
[1745834187160,0.30888309,1809.6,1809.2,0.7774]
[1745834187676,1.10578309,1809.6,1809.2,0.7774]
[1745834188662,0.30888309,1809.5,1809.2,0.7774]
[1745834192200,0.7969,1809.6,1809.2,0.7774]
[1745834192598,0.7969,1809.6,1808.9,1.3054]
[1745834193109,0.7969,1809.6,1809.0,0.7554]
[1745834194304,0.7969,1809.6,1809.0,5.52785749]
[1745834194470,3.8178,1809.8,1809.1,1.34198575]
[1745834194673,0.31006733,1809.7,1809.1,1.34198575]
[1745834195585,0.31006733,1809.6,1809.1,1.34198575]
[1745834195789,0.31006733,1809.6,1809.2,0.8145]
[1745834198982,2.66060988,1809.7,1809.2,0.8145]
[1745834199181,0.771,1809.6,1809.2,0.8145]
[1745834199413,0.31036594,1809.5,1809.0,0.3833]
[1745834200313,0.31036594,1809.4,1809.0,0.3833]
[1745834200904,0.7853,1809.3,1809.0,0.3833]
[1745834201105,0.7853,1809.3,1808.8,3.42378645]
[1745834201307,0.7853,1809.3,1808.9,0.34237865]
[1745834202414,3.13554394,1809.3,1808.8,0.42378645]
[1745834202714,3.13554394,1809.3,1808.7,0.8272]
[1745834206521,3.13554394,1809.3,1808.7,1.23568624]
[1745834207423,0.31059427,1809.2,1808.7,1.23568624]
[1745834208420,0.31059427,1809.1,1808.7,1.23568624]
[1745834209087,1.06589427,1809.1,1808.7,1.23568624]
[1745834209830,0.7553,1809.1,1808.7,1.23568624]
[1745834213924,1.06560111,1809.1,1808.7,1.23568624]
[1745834214728,0.7553,1809.1,1808.7,1.23568624]
[1745834217225,0.7553,1809.1,1808.7,0.40848624]
[1745834217423,0.7553,1809.1,1808.7,0.89374064]
[1745834218029,0.7553,1809.1,1808.5,1.3665]
[1745834218321,0.7553,1809.1,1808.5,0.8165]
[1745834218487,0.8067,1808.9,1808.4,0.4150667]
[1745834219222,0.8067,1808.9,1808.4,0.83193382]
[1745834219425,0.8067,1808.9,1808.4,0.4150667]
[1745834219925,0.8067,1808.9,1808.4,0.68947052]
[1745834220130,0.8067,1808.9,1808.4,0.4150667]
[1745834220628,0.31014806,1808.8,1808.4,0.4150667]
[1745834221534,0.8067,1808.9,1808.4,0.4150667]
[1745834222629,1.11684806,1808.9,1808.4,0.4150667]
[1745834222928,1.11684806,1808.9,1808.4,0.82175017]
[1745834223302,1.11684806,1808.9,1808.4,6.3514275]
[1745834223497,1.11684806,1808.9,1808.4,0.82175017]
[1745834223702,0.8067,1808.9,1808.4,6.35144322]
[1745834224712,0.8067,1808.9,1808.4,6.35129012]
[1745834224910,0.8067,1808.9,1808.5,0.63512901]
[1745834225333,0.8067,1808.9,1808.4,6.35149857]
[1745834225636,0.8067,1808.9,1808.4,6.35149486]
[1745834225836,0.8067,1808.9,1808.5,3.0]
[1745834225997,0.8067,1808.9,1808.5,8.52927311]
[1745834226194,1.12919494,1809.1,1808.6,8.67673472]
[1745834226429,1.12919494,1809.1,1808.7,0.86767347]
[1745834226633,1.12919494,1809.1,1808.6,0.7976]
[1745834226809,1.12919494,1809.1,1808.5,8.52924848]
[1745834226810,0.8192,1809.1,1808.5,9.35104848]
[1745834227131,0.8192,1809.1,1808.5,3.8218]
[1745834227436,0.8192,1809.1,1808.5,3.0]
[1745834227939,0.8192,1809.1,1808.5,8.52941124]
[1745834229036,0.31032902,1809.0,1808.5,8.52941124]
[1745834229207,1.09922902,1809.0,1808.5,8.52941124]
[1745834229406,1.09922902,1809.0,1808.5,3.0]
[1745834230011,0.7988,1808.9,1808.4,0.82175017]
[1745834230404,0.31043635,1808.8,1808.4,0.82175017]
[1745834230633,0.7988,1808.7,1808.4,1.20392519]
[1745834234012,0.7988,1808.7,1808.4,6.73354404]
[1745834234213,0.7988,1808.7,1808.4,9.08378798]
[1745834234714,0.7988,1808.7,1808.4,3.55416913]
[1745834235034,0.31045369,1808.8,1808.4,1.20392519]
[1745834235342,0.7897,1808.7,1808.4,1.20392519]
[1745834237932,0.7897,1808.7,1808.4,0.82175017]
[1745834240766,0.7897,1808.7,1808.4,0.4150667]
[1745834242024,0.7678,1808.5,1808.4,0.4150667]
[1745834244061,1.07797602,1808.5,1808.4,0.4150667]
[1745834248744,0.7678,1808.5,1808.4,0.4150667]
[1745834249564,1.07797602,1808.5,1808.4,0.4150667]
[1745834250976,0.7678,1808.5,1808.4,0.4150667]
[1745834253373,1.11797602,1808.6,1808.4,0.4150667]
[1745834253949,0.7777,1808.5,1808.4,0.4150667]
[1745834254360,4.09049439,1808.5,1808.4,0.4150667]
[1745834254866,4.40067041,1808.5,1808.4,0.4150667]
[1745834255958,1.40067041,1808.5,1808.4,0.4150667]
[1745834256349,1.08787602,1808.5,1808.4,0.4150667]
[1745834256667,0.7777,1808.5,1808.4,0.4150667]
[1745834257757,1.08787602,1808.5,1808.4,0.4150667]
[1745834258683,0.7777,1808.5,1808.4,0.4150667]
[1745834259349,1.08787602,1808.5,1808.4,0.4150667]
[1745834259776,0.31017602,1808.5,1808.4,0.4150667]
[1745834260551,0.31017602,1808.6,1808.4,0.4150667]
[1745834261580,0.8222,1808.7,1808.4,0.4150667]
[1745834261746,0.31017602,1808.8,1808.4,0.4150667]
[1745834261944,0.31017602,1808.8,1808.4,1.2157667]
[1745834262458,0.31017602,1808.7,1808.4,1.2157667]
[1745834263070,1.12537602,1808.7,1808.4,0.4150667]
[1745834263892,0.8152,1808.7,1808.4,0.4150667]
[1745834265274,0.31017602,1808.6,1808.4,0.4150667]
[1745834267853,0.31017602,1808.6,1808.5,0.8056]
[1745834268373,0.31017602,1808.6,1808.4,1.1765667]
[1745834268880,0.31017602,1808.8,1808.4,1.1765667]
[1745834269481,0.31017602,1808.8,1808.4,0.4150667]
[1745834269783,0.31017602,1808.7,1808.4,0.4150667]
[1745834270490,0.8204,1808.9,1808.4,0.4150667]
[1745834270688,1.13746439,1808.9,1808.4,0.4150667]
[1745834271578,3.10764394,1808.8,1808.4,0.4150667]
[1745834271782,3.41798392,1808.8,1808.4,0.4150667]
[1745834272957,0.31033998,1808.7,1808.4,0.4150667]
[1745834274278,0.31033998,1808.6,1808.4,0.4150667]
[1745834275223,0.31033998,1808.6,1808.5,0.7872]
[1745834275518,0.31033998,1808.9,1808.5,1.14245106]
[1745834276201,0.8302,1809.1,1808.5,1.14245106]
[1745834277216,0.31025921,1809.0,1808.5,1.14245106]
[1745834278082,0.31025921,1808.9,1808.5,1.56523225]
[1745834279416,0.31025921,1809.0,1808.5,1.56523225]
[1745834280419,0.31025921,1808.9,1808.5,1.56523225]
[1745834280716,0.31025921,1808.9,1808.6,3.13994394]
[1745834280918,0.31025921,1808.9,1808.7,0.31399439]
[1745834281079,0.31025921,1809.1,1808.6,0.7897]
[1745834282080,0.31025921,1809.0,1808.6,0.7897]
[1745834282983,0.31025921,1809.1,1808.6,0.7897]
[1745834288892,0.7735,1809.2,1808.6,0.7897]
[1745834290821,0.7735,1809.2,1808.6,6.31882145]
[1745834291121,0.31009817,1809.1,1808.7,0.63188214]
[1745834291326,0.31009817,1809.1,1808.6,0.7897]
[1745834292209,0.7735,1809.2,1808.6,0.7897]
[1745834294731,0.3101271,1809.1,1808.6,0.7897]
[1745834295627,0.7735,1809.2,1808.6,0.7897]
[1745834297737,0.31022039,1809.1,1808.6,0.7897]
[1745834298532,0.31022039,1809.1,1808.6,6.31871391]
[1745834298734,0.31022039,1809.1,1808.7,0.63187139]
[1745834299039,0.7735,1809.2,1808.6,0.7897]
[1745834299200,0.7735,1809.2,1808.7,5.52877871]
[1745834299400,0.7735,1809.2,1808.8,0.7627]
[1745834299602,3.7712,1809.4,1808.8,0.7627]
[1745834299838,0.7712,1809.4,1808.8,0.7627]
[1745834300017,0.7712,1809.4,1808.8,6.29110662]
[1745834300215,0.7712,1809.4,1808.9,0.62911066]
[1745834300603,0.7712,1809.4,1809.0,0.7627]
[1745834300807,0.31021403,1809.3,1809.0,0.7627]
[1745834301644,0.31021403,1809.2,1809.0,0.7627]
[1745834302442,0.31021403,1809.3,1809.0,0.7627]
[1745834302831,0.31021403,1809.3,1808.8,0.7944]
[1745834303234,0.31021403,1809.2,1808.8,0.7944]
[1745834304114,3.12144394,1809.4,1808.8,0.7944]
[1745834304722,0.31050198,1809.3,1808.8,0.7944]
[1745834305646,0.31050198,1809.2,1808.8,0.7944]
[1745834306921,0.7712,1809.4,1808.8,0.7944]
[1745834307926,0.31049472,1809.3,1808.8,0.7944]
[1745834309152,0.31049472,1809.2,1808.8,0.7944]
[1745834310155,0.31049472,1809.2,1808.8,6.32292314]
[1745834310457,0.7712,1809.4,1808.9,0.63229231]
[1745834311168,0.31052493,1809.3,1809.0,0.8056]
[1745834312353,0.31052493,1809.2,1809.0,0.8056]
[1745834313235,0.7712,1809.4,1809.0,0.8056]
[1745834313956,0.31048521,1809.3,1809.0,0.8056]
[1745834314548,3.15704394,1809.6,1809.0,0.8056]
[1745834314748,3.77274833,1809.6,1809.0,0.8056]
[1745834315231,0.31047248,1809.5,1809.0,0.8056]
[1745834315851,0.31047248,1809.5,1809.0,6.33351386]
[1745834316078,0.31047248,1809.5,1809.0,6.33341531]
[1745834316385,0.31047248,1809.4,1809.0,6.33341531]
[1745834316585,0.31047248,1809.4,1809.1,0.63334153]
[1745834316762,0.31047248,1809.4,1809.0,0.8056]
[1745834317542,3.15704394,1809.6,1809.0,1.22409605]
[1745834318369,0.31036986,1809.5,1809.0,1.22409605]
[1745834319179,0.31036986,1809.4,1809.0,1.22409605]
[1745834320175,0.31036986,1809.3,1809.0,1.22409605]
[1745834321290,0.31036986,1809.3,1809.1,0.763]
[1745834321452,0.31036986,1809.5,1809.1,0.763]
[1745834322176,0.31036986,1809.4,1809.1,0.763]
[1745834323079,2.35024394,1809.6,1809.1,0.763]
[1745834323944,0.31038534,1809.5,1809.1,0.763]
[1745834325083,0.31038534,1809.4,1809.1,0.763]
[1745834325768,0.31038534,1809.3,1809.1,0.763]
[1745834327281,2.35024394,1809.6,1809.1,0.763]
[1745834328669,0.31058114,1809.5,1809.1,0.763]
[1745834329619,0.31058114,1809.4,1809.1,0.763]
[1745834330983,0.31058114,1809.3,1809.1,0.763]
[1745834331855,0.7805,1809.5,1809.1,0.763]
[1745834332481,0.31067282,1809.4,1809.1,0.763]
[1745834333766,2.35024394,1809.2,1808.8,0.8201]
[1745834333980,2.35024394,1809.2,1808.5,0.42278119]
[1745834333981,2.35024394,1808.9,1808.5,0.42278119]
[1745834334187,3.0,1809.2,1808.4,0.4150667]
[1745834334188,2.35024394,1808.7,1808.4,0.4150667]
[1745834334352,2.35024394,1808.5,1808.4,0.4150667]
[1745834334561,0.7805,1808.7,1808.4,0.4150667]
[1745834334760,0.31067282,1808.5,1808.4,0.4150667]
[1745834335596,0.31067282,1808.6,1808.4,0.4150667]
[1745834336882,1.09117282,1808.7,1808.4,0.4150667]
[1745834337792,0.31067282,1808.7,1808.4,0.4150667]
[1745834339901,2.35024394,1808.8,1808.4,0.4150667]
[1745834340070,2.66803833,1808.8,1808.4,0.4150667]
[1745834341264,2.35024394,1808.8,1808.4,0.4150667]
[1745834346705,3.13514394,1808.5,1808.4,0.4150667]
[1745834346875,12.52372955,1808.5,1808.4,0.4150667]
[1745834347203,3.10914394,1807.8,1807.4,0.03853477]
[1745834347367,2.35024394,1807.6,1807.4,0.03853477]
[1745834347706,9.16914394,1808.0,1807.4,0.85623477]
[1745834347904,0.91691439,1807.9,1807.4,0.85623477]
[1745834349002,2.35024394,1807.8,1807.4,0.85623477]
[1745834350113,0.91691439,1807.9,1807.4,0.85623477]
[1745834351401,2.35024394,1807.8,1807.4,0.85623477]
[1745834352795,2.35024394,1807.8,1807.4,0.03853477]
[1745834354725,2.88526833,1807.8,1807.4,0.03853477]
[1745834357719,2.35024394,1807.6,1807.4,0.03853477]
[1745834357922,3.17604394,1807.6,1807.4,0.03853477]
[1745834358508,2.35024394,1807.6,1807.4,0.03853477]
[1745834359426,0.8056,1807.5,1807.4,0.03853477]
[1745834359598,1.12118439,1807.5,1807.4,0.03853477]
[1745834361021,4.12118439,1807.5,1807.4,0.03853477]
[1745834361608,0.31558439,1807.5,1807.4,0.03853477]
[1745834361795,3.10994394,1807.7,1807.4,0.03853477]
[1745834362004,0.7597,1807.7,1807.5,0.11369688]
[1745834362211,3.10994394,1807.7,1807.5,0.11369688]
[1745834362410,2.88526833,1807.8,1807.4,0.03853477]
[1745834362612,2.88526833,1807.8,1807.6,0.11369732]
[1745834362811,0.28852683,1807.7,1807.4,0.03853477]
[1745834363332,0.28852683,1807.7,1807.5,0.11419259]
[1745834363686,0.28852683,1807.7,1807.4,0.03853477]
[1745834363920,2.88526833,1807.8,1807.6,0.11439115]
[1745834364084,2.88526833,1807.8,1807.5,0.11466841]
[1745834364290,2.88526833,1807.8,1807.7,0.11326786]
[1745834364697,2.88526833,1807.8,1807.4,0.81063477]
[1745834365116,2.88526833,1807.8,1807.5,0.11461546]
[1745834366808,2.88526833,1807.8,1807.4,0.81063477]
[1745834367028,2.35024394,1807.8,1807.5,0.11461547]
[1745834367228,2.35024394,1807.8,1807.4,0.81063477]
[1745834367535,2.35024394,1807.8,1807.5,0.11461547]
[1745834369634,0.8108,1807.9,1807.5,0.11461547]
[1745834369792,3.7841,1808.1,1807.5,0.11461547]
[1745834369992,4.6901,1808.1,1807.5,0.11461547]
[1745834370298,0.30872232,1808.0,1807.5,0.11461547]
[1745834370499,2.35024394,1807.8,1807.5,0.11461547]
[1745834372125,0.7841,1807.9,1807.5,0.11461547]
[1745834372315,2.35024394,1808.0,1807.5,0.11461547]
[1745834372518,0.30898855,1807.9,1807.5,0.11461547]
[1745834373448,2.35024394,1807.6,1807.5,0.11461547]
[1745834373633,0.55,1807.3,1806.5,0.7751]
[1745834373931,0.55,1807.3,1806.1,0.7751]
[1745834373932,2.35024394,1806.7,1806.1,0.7751]
[1745834374226,14.87083051,1806.7,1805.8,0.7751]
[1745834374430,2.05089393,1806.7,1805.8,0.7751]
[1745834374825,3.0,1806.8,1806.3,0.7751]
[1745834375016,0.30898855,1806.7,1806.3,0.7751]
[1745834375959,0.30898855,1806.8,1806.3,0.7751]
[1745834376625,1.07888855,1806.9,1806.3,0.7751]
[1745834377657,0.30898855,1806.9,1806.3,0.7751]
[1745834377949,4.09188855,1807.1,1806.3,0.7751]
[1745834378158,0.40918886,1807.0,1806.3,0.7751]
[1745834378858,0.71817741,1807.0,1806.3,0.7751]
[1745834379044,5.08892986,1807.0,1806.3,0.7751]
[1745834379643,0.71817741,1807.0,1806.3,0.7751]
[1745834379850,0.40918886,1807.0,1806.3,6.31116648]
[1745834380045,0.40918886,1807.0,1806.3,0.7751]
[1745834380747,4.37075245,1807.2,1806.3,0.7751]
[1745834380748,0.7712,1807.3,1806.4,5.53561214]
[1745834380928,0.7712,1807.3,1806.7,0.755]
[1745834381131,3.7712,1807.3,1806.7,0.755]
[1745834381760,0.30870852,1807.2,1806.7,0.755]
[1745834381955,0.71669937,1807.2,1806.7,0.755]
[1745834383654,0.71669937,1807.2,1806.7,0.755]
[1745834388458,0.30870852,1807.2,1806.7,0.755]
[1745834389679,3.0,1807.3,1806.7,0.755]
[1745834390257,3.8317,1807.5,1806.7,0.755]
[1745834390462,0.30855366,1807.4,1806.7,0.755]
[1745834393173,0.30855366,1807.4,1806.8,6.32429449]
[1745834393367,0.30855366,1807.5,1807.0,0.7898]
[1745834394095,0.30855366,1807.6,1807.0,0.7898]
[1745834395198,6.8505,1807.7,1807.0,0.7898]
[1745834396087,6.06,1807.7,1807.0,0.7898]
[1745834398419,5.35838615,1807.8,1807.0,0.7898]
[1745834398613,0.53583862,1807.7,1807.0,0.7898]
[1745834398924,0.8445623,1807.7,1807.0,0.7898]
[1745834401045,0.8445623,1807.7,1807.1,0.7751]
[1745834401190,0.30872368,1807.7,1807.1,0.7751]
[1745834401530,0.30872368,1807.8,1807.1,0.7751]
[1745834402025,0.30872368,1807.8,1807.3,6.33204721]
[1745834402183,0.30872368,1807.8,1807.5,0.7991]
[1745834402393,0.30872368,1808.2,1807.5,0.7991]
[1745834402598,3.65112466,1808.2,1807.5,0.7991]
[1745834402796,0.65112466,1808.2,1807.5,0.7991]
[1745834409955,0.65112466,1808.2,1807.5,6.33160063]
[1745834410203,0.30872368,1808.2,1807.6,0.8006]
[1745834411200,0.30872368,1808.4,1807.8,4.91394044]
[1745834411404,0.30872368,1808.4,1808.3,5.16454044]
[1745834411560,0.30872368,1808.4,1808.3,10.69459629]
[1745834411763,0.30872368,1808.4,1808.3,0.8006]
[1745834411958,0.8178,1808.9,1808.3,0.8006]
[1745834413076,3.0,1808.7,1808.1,0.7722]
[1745834413273,5.18234044,1808.6,1808.1,0.7722]
[1745834413506,5.49106412,1808.6,1808.1,0.7722]
[1745834413680,0.54910641,1808.5,1807.7,3.0]
[1745834413876,0.54910641,1808.5,1807.8,0.7539]
[1745834414898,0.85783009,1808.5,1807.8,0.7539]
[1745834420268,0.30872368,1808.5,1807.9,0.8084]
[1745834420897,6.06,1808.6,1807.9,0.8084]
[1745834421308,0.8078,1808.5,1807.9,0.8084]
[1745834423735,1.11647249,1808.5,1807.9,0.8084]
[1745834424498,0.8078,1808.5,1807.9,0.8084]
[1745834424698,0.8078,1808.5,1807.9,6.33960276]
[1745834424901,0.8078,1808.5,1808.0,0.63396028]
[1745834425130,0.8078,1808.5,1807.9,0.8084]
[1745834426619,1.11647249,1808.5,1807.9,0.8084]
[1745834427539,0.8078,1808.5,1807.9,0.8084]
[1745834428730,1.11647249,1808.5,1807.9,0.8084]
[1745834429901,0.30867249,1808.4,1807.9,0.8084]
[1745834430716,0.30867249,1808.4,1807.9,6.33950208]
[1745834430937,0.30867249,1808.4,1808.1,0.7567]
[1745834431744,0.30867249,1808.6,1808.1,0.7567]
[1745834432119,0.30867249,1808.6,1807.9,0.7872]
[1745834432311,0.7717,1808.5,1807.9,0.7872]
[1745834432942,0.30867249,1808.4,1807.9,0.7872]
[1745834433164,0.30867249,1808.4,1807.9,1.16592]
[1745834433325,0.7603,1808.3,1807.7,0.7968]
[1745834433645,0.7603,1808.3,1807.7,3.7968]
[1745834434206,0.30867249,1808.2,1807.7,3.7968]
[1745834436257,0.30867249,1808.2,1807.8,5.53149923]
[1745834436465,0.30867249,1808.2,1807.9,0.55314992]
[1745834436758,0.30867249,1808.2,1807.7,9.32854057]
[1745834437330,0.30867249,1808.2,1807.7,9.32848038]
[1745834437527,0.7603,1808.3,1807.7,9.32848038]
[1745834437826,0.7603,1808.3,1807.7,3.7968]
[1745834438227,0.7603,1808.3,1807.7,9.32867876]
[1745834438548,0.7603,1808.3,1807.8,0.93286788]
[1745834438738,0.7603,1808.3,1807.7,9.32856966]
[1745834439847,0.7603,1808.3,1807.8,11.0628159]
[1745834440053,0.802,1808.5,1807.9,11.06211592]
[1745834440252,0.802,1808.7,1808.1,0.7675]
[1745834440421,0.31008597,1808.6,1808.1,6.29793861]
[1745834440614,0.31008597,1808.6,1808.2,10.52392916]
[1745834440814,0.31008597,1808.6,1808.3,0.7874]
[1745834441551,0.31008597,1808.7,1808.3,0.7874]
[1745834442119,0.31008597,1808.7,1808.2,0.62979386]
[1745834442422,0.7763,1808.6,1808.0,0.8249]
[1745834443459,0.30996917,1808.5,1808.0,0.8249]
[1745834443957,0.30996917,1808.4,1808.0,0.8249]
[1745834445264,0.30996917,1808.5,1808.0,0.8249]
[1745834446120,0.7763,1808.6,1808.0,0.8249]
[1745834448772,0.30989209,1808.5,1808.0,0.8249]
[1745834448936,0.30989209,1808.5,1808.0,6.35579089]
[1745834449130,0.30989209,1808.5,1808.1,0.63557909]
[1745834449824,0.7763,1808.6,1808.1,0.63557909]
[1745834450031,0.7763,1808.6,1808.0,0.8249]
[1745834451451,0.7834,1808.5,1807.9,0.40513521]
[1745834451761,0.7834,1808.4,1807.8,5.53154852]
[1745834452065,3.0,1808.8,1807.6,0.7757]
[1745834452066,2.35650233,1808.1,1807.6,0.7757]
[1745834452374,0.31399023,1808.1,1807.6,0.7757]
[1745834452543,0.7834,1808.2,1807.6,0.7757]
[1745834453061,3.7834,1808.2,1807.6,0.7757]
[1745834453277,1.08299677,1808.1,1807.5,0.55]
[1745834454538,0.7733,1808.1,1807.5,0.55]
[1745834455278,0.7733,1808.1,1807.5,6.80837639]
[1745834455468,0.7733,1808.1,1807.5,1.27599005]
[1745834455866,0.7733,1808.1,1807.5,6.80834347]
[1745834456057,0.7733,1808.1,1807.5,1.27599005]
[1745834456382,0.7733,1808.1,1807.5,6.80846569]
[1745834456556,0.7733,1808.1,1807.6,0.68084657]
[1745834456880,0.7733,1808.1,1807.5,6.08245423]
[1745834457178,0.7733,1808.1,1807.6,6.29759326]
[1745834457781,0.7733,1808.1,1807.6,6.29751835]
[1745834457988,0.7885,1808.4,1807.6,6.29747629]
[1745834458348,0.30969677,1808.3,1807.6,6.29747629]
[1745834458548,0.30969677,1808.3,1807.7,0.62974763]
[1745834458786,0.8086,1808.2,1807.7,0.62974763]
[1745834460488,1.11829677,1808.4,1807.9,0.7984]
[1745834460650,1.11829677,1808.4,1807.8,3.55]
[1745834460979,0.8086,1808.4,1807.8,3.55]
[1745834461203,0.8086,1808.4,1807.9,0.355]
[1745834462598,0.8086,1808.4,1807.7,0.7984]
[1745834462912,0.8086,1808.4,1807.8,3.0]
[1745834463383,0.8086,1808.4,1807.8,8.53156639]
[1745834463579,0.8086,1808.4,1807.8,3.0]
[1745834463777,0.8086,1808.4,1807.8,8.53152851]
[1745834464111,0.8086,1808.4,1807.8,3.0]
[1745834464269,0.8086,1808.4,1807.9,0.3]
[1745834464469,0.8086,1808.4,1807.9,0.72449384]
[1745834464893,0.8086,1808.4,1808.0,0.7762]
[1745834465869,0.8086,1808.4,1807.9,0.72449384]
[1745834467575,0.8086,1808.4,1807.9,6.25563939]
[1745834467886,0.8086,1808.4,1808.0,0.62556394]
[1745834468208,0.8086,1808.4,1808.0,6.15640538]
[1745834468511,0.7813,1808.6,1808.1,6.83745039]
[1745834469894,0.7813,1808.6,1808.1,4.3069]
[1745834470215,0.7813,1808.6,1808.2,0.43069]
[1745834476984,0.7813,1808.6,1808.2,5.960938]
[1745834477183,0.7813,1808.6,1808.2,0.43069]
[1745834481517,0.7813,1808.6,1808.2,5.96099024]
[1745834482208,0.7813,1808.6,1808.2,8.31622853]
[1745834482519,0.7813,1808.6,1808.3,0.83162285]
[1745834484812,0.7813,1808.6,1808.2,2.35523829]
[1745834487625,0.7813,1808.6,1808.1,9.83734691]
[1745834489531,0.7813,1808.6,1808.1,4.3069]
[1745834489936,0.7813,1808.6,1808.1,9.83746047]
[1745834490222,0.7813,1808.6,1808.1,9.83738822]
[1745834490399,0.7813,1808.6,1808.2,5.53034153]
[1745834490607,0.7813,1808.6,1808.1,9.83738822]
[1745834492316,0.7813,1808.6,1808.1,4.3069]
[1745834492526,0.7813,1808.6,1808.1,3.55]
[1745834492848,0.7813,1808.6,1808.0,0.55]
[1745834493211,0.30912504,1808.5,1808.0,0.55]
[1745834493411,0.7714,1808.4,1808.0,0.55]
[1745834496529,0.7714,1808.4,1808.0,3.55]
[1745834496924,0.7714,1808.4,1808.0,3.0]
[1745834501162,0.7714,1808.4,1808.0,8.5309253]
[1745834501458,0.7714,1808.4,1808.0,3.0]
[1745834503363,0.7714,1808.4,1808.1,0.3]
[1745834504126,0.7714,1808.4,1808.2,2.35523829]
[1745834504330,0.30936618,1808.5,1808.2,7.88540096]
[1745834504567,0.7662,1808.6,1808.2,7.88540096]
[1745834505673,0.7662,1808.6,1808.2,2.35523829]
[1745834505983,0.7662,1808.6,1808.2,0.55]
[1745834506279,0.7662,1808.6,1808.2,1.26394969]
[1745834507066,0.7662,1808.6,1808.1,3.0]
[1745834514244,0.7662,1808.6,1808.2,0.55]
[1745834517184,0.7662,1808.6,1808.0,2.35523829]
[1745834517390,0.7662,1808.6,1808.0,7.88610802]
[1745834517983,0.7662,1808.6,1808.0,0.55]
[1745834518151,0.7681,1808.3,1807.9,0.42449384]
[1745834518354,0.7681,1808.3,1807.5,6.32987258]
[1745834518543,0.7681,1808.2,1807.6,0.63298726]
[1745834519581,0.7681,1808.2,1807.6,6.1650571]
[1745834520383,0.7527,1808.1,1807.6,6.1650571]
[1745834521440,0.7527,1808.1,1807.6,0.63298726]
[1745834521881,0.7527,1808.1,1807.6,3.63298726]
[1745834522068,2.35523829,1808.0,1807.4,0.4213208]
[1745834522265,2.35523829,1807.6,1807.3,5.0]
[1745834522498,0.7692,1807.5,1806.8,11.60452086]
[1745834522682,0.7692,1807.5,1806.7,7.19422495]
[1745834522886,0.7692,1807.5,1806.8,0.7194225]
[1745834523186,0.7692,1807.5,1806.8,8.60914349]
[1745834523476,0.7692,1807.5,1806.9,3.0]
[1745834523681,0.7692,1807.5,1807.0,7.88915722]
[1745834523888,0.7692,1807.5,1807.1,3.0]
[1745834524087,0.7692,1807.5,1807.1,0.77892537]
[1745834524588,0.7692,1807.5,1807.1,1.19110946]
[1745834524793,0.7692,1807.5,1807.1,0.77892537]
[1745834527784,0.7692,1807.5,1807.2,2.90523829]
[1745834528163,0.7692,1807.5,1807.2,8.43850779]
[1745834528384,0.7579,1808.2,1807.4,2.35523829]
[1745834528699,0.7579,1808.1,1807.4,2.35523829]
[1745834529208,0.7799,1808.0,1807.4,0.55]
[1745834530602,0.7799,1808.0,1807.4,2.90523829]
[1745834530799,0.7799,1808.0,1807.4,8.43802775]
[1745834531094,0.7799,1808.0,1807.5,0.77892537]
[1745834531808,0.7799,1808.0,1807.4,2.90523829]
[1745834532115,0.7799,1808.0,1807.4,0.55]
[1745834534003,0.7799,1808.0,1807.6,3.12183829]
[1745834535281,0.7799,1808.0,1807.6,0.7666]
[1745834535478,0.7799,1808.0,1807.6,0.4172016]
[1745834535707,0.7799,1808.0,1807.4,3.55]
[1745834536007,0.7799,1808.0,1807.5,0.355]
[1745834536225,0.7799,1808.0,1807.4,0.55]
[1745834536423,0.7997,1807.8,1807.1,0.40865011]
[1745834536594,0.7997,1807.8,1807.0,6.28941832]
[1745834536802,0.7997,1807.8,1807.1,3.55]
[1745834537002,0.7997,1807.8,1807.1,3.97230663]
[1745834537212,0.7997,1807.8,1807.1,0.97230663]
[1745834538124,0.7997,1807.8,1807.1,3.97230663]
[1745834538323,0.7997,1807.8,1807.2,0.39723066]
[1745834538508,0.7997,1807.8,1807.3,2.35523829]
[1745834540811,0.7997,1807.8,1807.5,2.35523829]
[1745834541240,0.7997,1807.8,1807.5,5.35523829]
[1745834541532,0.7997,1807.8,1807.5,3.0]
[1745834541730,0.7997,1807.8,1807.5,3.355]
[1745834542319,0.7997,1807.8,1807.5,11.24262103]
[1745834542569,0.7623,1808.1,1807.6,6.08219148]
[1745834542835,0.7623,1808.1,1807.7,3.0]
[1745834543004,0.7623,1808.1,1807.8,0.3]
[1745834543206,2.35523829,1808.1,1807.5,0.355]
[1745834543506,0.7623,1808.0,1807.4,0.55]
[1745834546426,0.7623,1808.0,1807.4,6.08255907]
[1745834546820,0.7623,1808.0,1807.4,0.55]
[1745834549065,0.7623,1808.0,1807.4,6.0826311]